[Event "Titled Tuesday Blitz November 07 Late 2023"]
[White "Kovacsy, Barnabas"]
[Black "mind1mover"]
[WhiteFideId "769290"]
[WhiteElo "2503"]
[BlackElo "2832"]
[Result "1/2-1/2"]
[Round "8"]
[TimeControl "180+1"]
[Date "2023.11.07"]
[WhiteClock "0:01:10"]
[BlackClock "0:00:30"]
[Board "28"]

1. e4 {[%clk 0:03:00]}  Nc6 {[%clk 0:02:57]} 2. Nf3 {[%clk 0:03:00]}  d6 {[%clk 0:02:57]} 3. d4 {[%clk 0:02:55]}  Nf6 {[%clk 0:02:57]} 4. Nc3 {[%clk 0:02:52]}  g6 {[%clk 0:02:58]} 5. Be2 {[%clk 0:02:52]}  Bg7 {[%clk 0:02:57]} 6. O-O {[%clk 0:02:45]}  O-O {[%clk 0:02:56]} 7. Re1 {[%clk 0:02:43]}  e5 {[%clk 0:02:54]} 8. dxe5 {[%clk 0:02:41]}  dxe5 {[%clk 0:02:55]} 9. Qxd8 {[%clk 0:02:41]}  Rxd8 {[%clk 0:02:55]} 10. h3 {[%clk 0:02:36]}  h6 {[%clk 0:02:52]} 11. Be3 {[%clk 0:02:35]}  Be6 {[%clk 0:02:43]} 12. Rad1 {[%clk 0:02:32]}  a6 {[%clk 0:02:43]} 13. a3 {[%clk 0:02:21]}  Bf8 {[%clk 0:02:27]} 14. Kf1 {[%clk 0:02:13]}  Rd6 {[%clk 0:02:21]} 15. Rxd6 {[%clk 0:02:10]}  cxd6 {[%clk 0:02:22]} 16. Rd1 {[%clk 0:02:09]}  Rc8 {[%clk 0:02:14]} 17. Bb6 {[%clk 0:01:53]}  Nb8 {[%clk 0:02:05]} 18. Bd3 {[%clk 0:01:43]}  Nbd7 {[%clk 0:02:02]} 19. Be3 {[%clk 0:01:44]}  Nc5 {[%clk 0:01:58]} 20. Nd2 {[%clk 0:01:44]}  Nxd3 {[%clk 0:01:54]} 21. cxd3 {[%clk 0:01:43]}  d5 {[%clk 0:01:55]} 22. d4 {[%clk 0:01:37]}  Bxa3 {[%clk 0:01:01]} 23. bxa3 {[%clk 0:01:25]}  Rxc3 {[%clk 0:00:58]} 24. dxe5 {[%clk 0:01:22]}  Nxe4 {[%clk 0:00:38]} 25. Nxe4 {[%clk 0:01:22]}  dxe4 {[%clk 0:00:39]} 26. Bxh6 {[%clk 0:01:13]}  Bc4+ {[%clk 0:00:35]} 27. Ke1 {[%clk 0:01:12]}  Bd3 {[%clk 0:00:30]} 28. Rc1 {[%clk 0:01:12]}  Rxc1+ {[%clk 0:00:09]} 29. Bxc1 {[%clk 0:01:13]}  Kf8 {[%clk 0:00:09]} 30. a4 {[%clk 0:01:02]}  Ke7 {[%clk 0:00:08]} 31. a5 {[%clk 0:01:01]}  Ke6 {[%clk 0:00:08]} 32. Bb2 {[%clk 0:01:01]}  Kd5 {[%clk 0:00:07]} 33. g3 {[%clk 0:00:57]}  Kc4 {[%clk 0:00:06]} 34. Bc1 {[%clk 0:00:54]}  Kd4 {[%clk 0:00:06]} 35. Bb2+ {[%clk 0:00:54]}  Kc5 {[%clk 0:00:07]} 36. Bc3 {[%clk 0:00:54]}  Kc4 {[%clk 0:00:07]} 37. Bd2 {[%clk 0:00:51]}  Kd4 {[%clk 0:00:07]} 38. Bf4 {[%clk 0:00:52]}  Bb5 {[%clk 0:00:06]} 39. Kd2 {[%clk 0:00:50]}  Bd7 {[%clk 0:00:06]} 40. h4 {[%clk 0:00:50]}  Be6 {[%clk 0:00:02]} 41. Kc2 {[%clk 0:00:50]}  Kc4 {[%clk 0:00:02]} 42. Bd2 {[%clk 0:00:47]}  Bg4 {[%clk 0:00:02]} 43. Bc3 {[%clk 0:00:45]}  Bf5 {[%clk 0:00:03]} 44. Kd2 {[%clk 0:00:45]}  Bg4 {[%clk 0:00:02]} 45. Bb2 {[%clk 0:00:45]}  Bh3 {[%clk 0:00:02]} 46. Bc3 {[%clk 0:00:44]}  Be6 {[%clk 0:00:02]} 47. Bb2 {[%clk 0:00:44]}  Bd7 {[%clk 0:00:02]} 48. Bc3 {[%clk 0:00:45]}  Bc6 {[%clk 0:00:02]} 49. Bb2 {[%clk 0:00:45]}  Kd5 {[%clk 0:00:01]} 50. Bc3 {[%clk 0:00:44]}  Bb5 {[%clk 0:00:01]} 51. Bb2 {[%clk 0:00:44]}  Bf1 {[%clk 0:00:02]} 52. Bc3 {[%clk 0:00:43]}  Bh3 {[%clk 0:00:03]} 53. Ke3 {[%clk 0:00:44]}  Bg4 {[%clk 0:00:03]} 54. Bb2 {[%clk 0:00:43]}  Bf3 {[%clk 0:00:04]} 55. Bc3 {[%clk 0:00:44]}  Kc4 {[%clk 0:00:04]} 56. Bd2 {[%clk 0:00:44]}  Kb3 {[%clk 0:00:04]} 57. Bc1 {[%clk 0:00:42]}  Kb4 {[%clk 0:00:04]} 58. Bd2+ {[%clk 0:00:42]}  Kc5 {[%clk 0:00:05]} 59. Bc3 {[%clk 0:00:43]}  Kc4 {[%clk 0:00:03]} 60. Bd2 {[%clk 0:00:43]}  Kd5 {[%clk 0:00:03]} 61. Bc3 {[%clk 0:00:43]}  Kc6 {[%clk 0:00:04]} 62. Bd4 {[%clk 0:00:43]}  Bg2 {[%clk 0:00:04]} 63. Bb6 {[%clk 0:00:43]}  Kd5 {[%clk 0:00:04]} 64. Bc7 {[%clk 0:00:43]}  Bh3 {[%clk 0:00:04]} 65. Bb8 {[%clk 0:00:42]}  Bg4 {[%clk 0:00:04]} 66. Bc7 {[%clk 0:00:42]}  Bf5 {[%clk 0:00:04]} 67. Kf4 {[%clk 0:00:41]}  Bh3 {[%clk 0:00:02]} 68. Bb6 {[%clk 0:00:40]}  Bg2 {[%clk 0:00:02]} 69. Bc7 {[%clk 0:00:41]}  Bf3 {[%clk 0:00:03]} 70. Bb6 {[%clk 0:00:41]}  Kc6 {[%clk 0:00:04]} 71. Bd8 {[%clk 0:00:41]}  Kd7 {[%clk 0:00:04]} 72. Bb6 {[%clk 0:00:41]}  Ke6 {[%clk 0:00:04]} 73. Bd8 {[%clk 0:00:42]}  Bg2 {[%clk 0:00:04]} 74. Bb6 {[%clk 0:00:42]}  f6 {[%clk 0:00:04]} 75. exf6 {[%clk 0:00:42]}  Kxf6 {[%clk 0:00:05]} 76. g4 {[%clk 0:00:42]}  Bf3 {[%clk 0:00:06]} 77. g5+ {[%clk 0:00:40]}  Ke6 {[%clk 0:00:06]} 78. Ke3 {[%clk 0:00:41]}  Kd5 {[%clk 0:00:06]} 79. Bd8 {[%clk 0:00:41]}  Bg4 {[%clk 0:00:06]} 80. Bb6 {[%clk 0:00:42]}  Be6 {[%clk 0:00:06]} 81. Bd8 {[%clk 0:00:42]}  Bd7 {[%clk 0:00:07]} 82. Bb6 {[%clk 0:00:42]}  Be8 {[%clk 0:00:07]} 83. Bd8 {[%clk 0:00:43]}  Ke5 {[%clk 0:00:08]} 84. Bb6 {[%clk 0:00:43]}  Kf5 {[%clk 0:00:08]} 85. Bd8 {[%clk 0:00:44]}  Bc6 {[%clk 0:00:09]} 86. Bb6 {[%clk 0:00:44]}  Kg4 {[%clk 0:00:09]} 87. Bd8 {[%clk 0:00:45]}  Kxh4 {[%clk 0:00:09]} 88. Bb6 {[%clk 0:00:46]}  Kg4 {[%clk 0:00:10]} 89. Bd8 {[%clk 0:00:47]}  Kf5 {[%clk 0:00:10]} 90. Bb6 {[%clk 0:00:48]}  Kxg5 {[%clk 0:00:11]} 91. Bd8+ {[%clk 0:00:48]}  Kf5 {[%clk 0:00:11]} 92. Bb6 {[%clk 0:00:48]}  Bd7 {[%clk 0:00:10]} 93. Bd8 {[%clk 0:00:48]}  Be6 {[%clk 0:00:11]} 94. Bb6 {[%clk 0:00:49]}  Bb3 {[%clk 0:00:11]} 95. Bd8 {[%clk 0:00:50]}  Bd1 {[%clk 0:00:11]} 96. Bb6 {[%clk 0:00:51]}  Bf3 {[%clk 0:00:12]} 97. Bd8 {[%clk 0:00:51]}  g5 {[%clk 0:00:12]} 98. Bb6 {[%clk 0:00:52]}  g4 {[%clk 0:00:13]} 99. Bd8 {[%clk 0:00:50]}  Ke5 {[%clk 0:00:13]} 100. Bb6 {[%clk 0:00:49]}  Kd5 {[%clk 0:00:13]} 101. Bd8 {[%clk 0:00:50]}  Kc5 {[%clk 0:00:14]} 102. Bb6+ {[%clk 0:00:49]}  Kb5 {[%clk 0:00:15]} 103. Bd8 {[%clk 0:00:50]}  Kb4 {[%clk 0:00:15]} 104. Bb6 {[%clk 0:00:50]}  Kc3 {[%clk 0:00:16]} 105. Bd4+ {[%clk 0:00:46]}  Kc4 {[%clk 0:00:16]} 106. Bb6 {[%clk 0:00:47]}  Kc3 {[%clk 0:00:16]} 107. Bd4+ {[%clk 0:00:47]}  Kc2 {[%clk 0:00:17]} 108. Bb6 {[%clk 0:00:47]}  Kd1 {[%clk 0:00:18]} 109. Bd4 {[%clk 0:00:47]}  Ke1 {[%clk 0:00:19]} 110. Bb6 {[%clk 0:00:47]}  Kf1 {[%clk 0:00:20]} 111. Bd4 {[%clk 0:00:47]}  Kg2 {[%clk 0:00:20]} 112. Bb6 {[%clk 0:00:47]}  g3 {[%clk 0:00:18]} 113. fxg3 {[%clk 0:00:47]}  Kxg3 {[%clk 0:00:18]} 114. Bd8 {[%clk 0:00:48]}  Kg4 {[%clk 0:00:19]} 115. Bb6 {[%clk 0:00:48]}  Kf5 {[%clk 0:00:20]} 116. Bd8 {[%clk 0:00:48]}  Ke6 {[%clk 0:00:21]} 117. Bb6 {[%clk 0:00:47]}  Kd7 {[%clk 0:00:21]} 118. Kd4 {[%clk 0:00:47]}  Kc6 {[%clk 0:00:22]} 119. Ke3 {[%clk 0:00:47]}  Bg2 {[%clk 0:00:22]} 120. Kd4 {[%clk 0:00:47]}  Kd6 {[%clk 0:00:21]} 121. Ke3 {[%clk 0:00:47]}  Kd5 {[%clk 0:00:22]} 122. Bd8 {[%clk 0:00:47]}  Bh3 {[%clk 0:00:23]} 123. Bb6 {[%clk 0:00:46]}  Bf5 {[%clk 0:00:24]} 124. Kf4 {[%clk 0:00:46]}  Bh7 {[%clk 0:00:24]} 125. Ke3 {[%clk 0:00:47]}  Bg6 {[%clk 0:00:23]} 126. Kf4 {[%clk 0:00:47]}  Bf7 {[%clk 0:00:23]} 127. Ke3 {[%clk 0:00:48]}  Ke5 {[%clk 0:00:23]} 128. Bd4+ {[%clk 0:00:47]}  Kf5 {[%clk 0:00:22]} 129. Bb6 {[%clk 0:00:48]}  Bd5 {[%clk 0:00:22]} 130. Kd4 {[%clk 0:00:47]}  Ke6 {[%clk 0:00:23]} 131. Ke3 {[%clk 0:00:47]}  Kd6 {[%clk 0:00:23]} 132. Kd4 {[%clk 0:00:45]}  Kc6 {[%clk 0:00:23]} 133. Ke3 {[%clk 0:00:45]}  Kd6 {[%clk 0:00:21]} 134. Kd4 {[%clk 0:00:46]}  Bc6 {[%clk 0:00:22]} 135. Ke3 {[%clk 0:00:46]}  Kd5 {[%clk 0:00:23]} 136. Kf4 {[%clk 0:00:46]}  Kc4 {[%clk 0:00:21]} 137. Ke3 {[%clk 0:00:47]}  Bd5 {[%clk 0:00:21]} 138. Bd8 {[%clk 0:00:44]}  Kc3 {[%clk 0:00:20]} 139. Bb6 {[%clk 0:00:43]}  Kc2 {[%clk 0:00:20]} 140. Kd4 {[%clk 0:00:34]}  Bc6 {[%clk 0:00:21]} 141. Ke3 {[%clk 0:00:34]}  Kb3 {[%clk 0:00:21]} 142. Kd4 {[%clk 0:00:33]}  Kb4 {[%clk 0:00:22]} 143. Ke3 {[%clk 0:00:33]}  Kc4 {[%clk 0:00:23]} 144. Bd8 {[%clk 0:00:32]}  b5 {[%clk 0:00:20]} 145. axb6 {[%clk 0:00:31]}  Bb7 {[%clk 0:00:18]} 146. Kd2 {[%clk 0:00:31]}  Kb3 {[%clk 0:00:17]} 147. Kc1 {[%clk 0:00:30]}  Kc3 {[%clk 0:00:16]} 148. Kb1 {[%clk 0:00:29]}  e3 {[%clk 0:00:14]} 149. Bh4 {[%clk 0:00:29]}  e2 {[%clk 0:00:14]} 150. Ka1 {[%clk 0:00:29]}  Kb3 {[%clk 0:00:14]} 151. Be1 {[%clk 0:00:29]}  Kc4 {[%clk 0:00:12]} 152. Ba5 {[%clk 0:00:29]}  Kb5 {[%clk 0:00:12]} 153. Be1 {[%clk 0:00:30]}  Kxb6 {[%clk 0:00:12]} 154. Ka2 {[%clk 0:00:31]}  Kb5 {[%clk 0:00:12]} 155. Ka1 {[%clk 0:00:31]}  Bc6 {[%clk 0:00:10]} 156. Bf2 {[%clk 0:00:32]}  Bd7 {[%clk 0:00:11]} 157. Be1 {[%clk 0:00:33]}  Be6 {[%clk 0:00:12]} 158. Bf2 {[%clk 0:00:34]}  Bf7 {[%clk 0:00:12]} 159. Be1 {[%clk 0:00:34]}  Bg6 {[%clk 0:00:13]} 160. Bf2 {[%clk 0:00:35]}  Bf5 {[%clk 0:00:14]} 161. Be1 {[%clk 0:00:36]}  Bg4 {[%clk 0:00:15]} 162. Bf2 {[%clk 0:00:37]}  Bh5 {[%clk 0:00:16]} 163. Be1 {[%clk 0:00:37]}  Bf3 {[%clk 0:00:17]} 164. Bf2 {[%clk 0:00:38]}  Bg2 {[%clk 0:00:18]} 165. Be1 {[%clk 0:00:39]}  Bf1 {[%clk 0:00:18]} 166. Bf2 {[%clk 0:00:39]}  Kc4 {[%clk 0:00:19]} 167. Be1 {[%clk 0:00:40]}  Kd3 {[%clk 0:00:19]} 168. Bf2 {[%clk 0:00:41]}  Bg2 {[%clk 0:00:20]} 169. Bg3 {[%clk 0:00:41]}  Bc6 {[%clk 0:00:20]} 170. Bh4 {[%clk 0:00:42]}  Bb5 {[%clk 0:00:21]} 171. Be1 {[%clk 0:00:42]}  Ke4 {[%clk 0:00:22]} 172. Bh4 {[%clk 0:00:42]}  Kf3 {[%clk 0:00:23]} 173. Be1 {[%clk 0:00:43]}  Kg2 {[%clk 0:00:24]} 174. Ba5 {[%clk 0:00:43]}  Kg3 {[%clk 0:00:24]} 175. Kb2 {[%clk 0:00:44]}  Kg4 {[%clk 0:00:25]} 176. Be1 {[%clk 0:00:44]}  Kf5 {[%clk 0:00:25]} 177. Bd2 {[%clk 0:00:44]}  Ke4 {[%clk 0:00:25]} 178. Be1 {[%clk 0:00:44]}  Kd5 {[%clk 0:00:26]} 179. Bd2 {[%clk 0:00:42]}  Kc4 {[%clk 0:00:26]} 180. Be1 {[%clk 0:00:43]}  Be8 {[%clk 0:00:27]} 181. Bh4 {[%clk 0:00:44]}  a5 {[%clk 0:00:25]} 182. Be1 {[%clk 0:00:45]}  Kb5 {[%clk 0:00:25]} 183. Ka3 {[%clk 0:00:44]}  Bf7 {[%clk 0:00:26]} 184. Kb2 {[%clk 0:00:45]}  Be6 {[%clk 0:00:26]} 185. Bd2 {[%clk 0:00:45]}  Bd5 {[%clk 0:00:24]} 186. Be1 {[%clk 0:00:46]}  Bc4 {[%clk 0:00:24]} 187. Bd2 {[%clk 0:00:46]}  Bd3 {[%clk 0:00:25]} 188. Be1 {[%clk 0:00:47]}  Be4 {[%clk 0:00:24]} 189. Bd2 {[%clk 0:00:48]}  Bf5 {[%clk 0:00:25]} 190. Be1 {[%clk 0:00:49]}  Bg4 {[%clk 0:00:26]} 191. Bd2 {[%clk 0:00:50]}  Bh5 {[%clk 0:00:27]} 192. Be1 {[%clk 0:00:51]}  Bg6 {[%clk 0:00:27]} 193. Bd2 {[%clk 0:00:51]}  Bh7 {[%clk 0:00:27]} 194. Be1 {[%clk 0:00:52]}  Bg8 {[%clk 0:00:28]} 195. Bd2 {[%clk 0:00:53]}  a4 {[%clk 0:00:28]} 196. Be1 {[%clk 0:00:54]}  Bf7 {[%clk 0:00:27]} 197. Bd2 {[%clk 0:00:54]}  Bb3 {[%clk 0:00:27]} 198. Be1 {[%clk 0:00:55]}  Kc4 {[%clk 0:00:27]} 199. Bd2 {[%clk 0:00:56]}  Kd4 {[%clk 0:00:28]} 200. Be1 {[%clk 0:00:56]}  Kd3 {[%clk 0:00:29]} 201. Bh4 {[%clk 0:00:57]}  Kd2 {[%clk 0:00:27]} 202. Ka1 {[%clk 0:00:57]}  Kc2 {[%clk 0:00:21]} 203. Be1 {[%clk 0:00:57]}  Bc4 {[%clk 0:00:19]} 204. Ba5 {[%clk 0:00:58]}  Bd5 {[%clk 0:00:19]} 205. Be1 {[%clk 0:00:58]}  a3 {[%clk 0:00:17]} 206. Bh4 {[%clk 0:00:58]}  Kd1 {[%clk 0:00:16]} 207. Bg3 {[%clk 0:00:59]}  Bb3 {[%clk 0:00:16]} 208. Bh4 {[%clk 0:00:58]}  Kd2 {[%clk 0:00:17]} 209. Bg5+ {[%clk 0:00:58]}  Kd3 {[%clk 0:00:17]} 210. Bh4 {[%clk 0:00:59]}  Ke3 {[%clk 0:00:17]} 211. Be1 {[%clk 0:00:59]}  Kf3 {[%clk 0:00:18]} 212. Bb4 {[%clk 0:01:00]}  Kf2 {[%clk 0:00:17]} 213. Bc5+ {[%clk 0:01:00]}  Ke1 {[%clk 0:00:17]} 214. Bb4+ {[%clk 0:01:01]}  Kd1 {[%clk 0:00:18]} 215. Ba5 {[%clk 0:01:01]}  Kc2 {[%clk 0:00:17]} 216. Be1 {[%clk 0:01:01]}  Bc4 {[%clk 0:00:18]} 217. Bh4 {[%clk 0:01:01]}  Kd2 {[%clk 0:00:18]} 218. Bg5+ {[%clk 0:01:01]}  Kd3 {[%clk 0:00:19]} 219. Bh4 {[%clk 0:01:02]}  Bd5 {[%clk 0:00:18]} 220. Bf2 {[%clk 0:01:02]}  Kc3 {[%clk 0:00:18]} 221. Bh4 {[%clk 0:01:03]}  Kc2 {[%clk 0:00:18]} 222. Be1 {[%clk 0:01:03]}  Kd1 {[%clk 0:00:19]} 223. Bh4 {[%clk 0:01:04]}  Be6 {[%clk 0:00:17]} 224. Bg3 {[%clk 0:01:04]}  Bf7 {[%clk 0:00:17]} 225. Bh4 {[%clk 0:01:04]}  Kc2 {[%clk 0:00:16]} 226. Be1 {[%clk 0:01:04]}  a2 {[%clk 0:00:17]} 227. Bh4 {[%clk 0:01:04]}  Kd3 {[%clk 0:00:18]} 228. Be1 {[%clk 0:01:04]}  Ke4 {[%clk 0:00:19]} 229. Bh4 {[%clk 0:01:05]}  Kf3 {[%clk 0:00:20]} 230. Be1 {[%clk 0:01:05]}  Kg2 {[%clk 0:00:21]} 231. Ba5 {[%clk 0:01:05]}  Kf1 {[%clk 0:00:22]} 232. Bb4 {[%clk 0:01:05]}  Be6 {[%clk 0:00:22]} 233. Ba5 {[%clk 0:01:06]}  Bd5 {[%clk 0:00:23]} 234. Bb4 {[%clk 0:01:06]}  Bc4 {[%clk 0:00:23]} 235. Ba5 {[%clk 0:01:07]}  Bb3 {[%clk 0:00:24]} 236. Bb4 {[%clk 0:01:07]}  Kf2 {[%clk 0:00:25]} 237. Bc5+ {[%clk 0:01:07]}  Kf3 {[%clk 0:00:26]} 238. Bb4 {[%clk 0:01:08]}  Ke3 {[%clk 0:00:26]} 239. Be1 {[%clk 0:01:08]}  Kd3 {[%clk 0:00:27]} 240. Bh4 {[%clk 0:01:08]}  Kc2 {[%clk 0:00:26]} 241. Be1 {[%clk 0:01:08]}  Kd1 {[%clk 0:00:27]} 242. Bh4 {[%clk 0:01:08]}  e1=Q {[%clk 0:00:28]} 243. Bxe1 {[%clk 0:01:09]}  Kxe1 {[%clk 0:00:29]} 244. Kb2 {[%clk 0:01:09]}  Kd2 {[%clk 0:00:29]} 245. Ka1 {[%clk 0:01:10]}  Kc1 {[%clk 0:00:30]} 1/2-1/2


[Site "https://www.chess.com"]

[Event "Titled Tuesday Blitz November 07 Late 2023"]
[White "Troff, Kayden"]
[Black "Fiorito, Francisco"]
[WhiteFideId "2047896"]
[BlackFideId "180165"]
[WhiteElo "2795"]
[BlackElo "2608"]
[Result "0-1"]
[Round "8"]
[TimeControl "180+1"]
[Date "2023.11.07"]
[WhiteClock "0:00:12"]
[BlackClock "0:00:12"]
[Board "31"]

1. d4 {[%clk 0:03:00]}  Nf6 {[%clk 0:02:59]} 2. c4 {[%clk 0:03:00]}  b6 {[%clk 0:02:59]} 3. Nf3 {[%clk 0:02:58]}  Bb7 {[%clk 0:03:00]} 4. Nc3 {[%clk 0:02:56]}  d5 {[%clk 0:02:59]} 5. cxd5 {[%clk 0:02:39]}  Nxd5 {[%clk 0:03:00]} 6. Qd3 {[%clk 0:02:37]}  Nxc3 {[%clk 0:02:55]} 7. bxc3 {[%clk 0:02:37]}  e6 {[%clk 0:02:55]} 8. e4 {[%clk 0:02:36]}  c5 {[%clk 0:02:46]} 9. Be2 {[%clk 0:02:30]}  cxd4 {[%clk 0:02:45]} 10. cxd4 {[%clk 0:02:31]}  Bb4+ {[%clk 0:02:45]} 11. Bd2 {[%clk 0:02:31]}  Bxd2+ {[%clk 0:02:46]} 12. Qxd2 {[%clk 0:02:32]}  Bxe4 {[%clk 0:02:36]} 13. Qf4 {[%clk 0:02:24]}  Bc6 {[%clk 0:01:51]} 14. Ne5 {[%clk 0:02:22]}  O-O {[%clk 0:01:47]} 15. Rc1 {[%clk 0:02:13]}  Bd5 {[%clk 0:01:45]} 16. O-O {[%clk 0:02:00]}  Nd7 {[%clk 0:01:45]} 17. Rc3 {[%clk 0:01:59]}  Nxe5 {[%clk 0:01:44]} 18. dxe5 {[%clk 0:01:58]}  f5 {[%clk 0:01:28]} 19. Rfc1 {[%clk 0:01:47]}  Rf7 {[%clk 0:01:03]} 20. h4 {[%clk 0:01:31]}  Qe7 {[%clk 0:00:58]} 21. h5 {[%clk 0:01:29]}  h6 {[%clk 0:00:54]} 22. a4 {[%clk 0:01:20]}  Rd8 {[%clk 0:00:53]} 23. Rg3 {[%clk 0:01:15]}  Kh8 {[%clk 0:00:47]} 24. Kh2 {[%clk 0:01:03]}  Rff8 {[%clk 0:00:46]} 25. Rcc3 {[%clk 0:00:54]}  Rc8 {[%clk 0:00:46]} 26. Rce3 {[%clk 0:00:55]}  Rc7 {[%clk 0:00:30]} 27. Rg6 {[%clk 0:00:54]}  Rfc8 {[%clk 0:00:14]} 28. Reg3 {[%clk 0:00:50]}  Qf8 {[%clk 0:00:14]} 29. Ba6 {[%clk 0:00:43]}  Rd8 {[%clk 0:00:11]} 30. Qh4 {[%clk 0:00:38]}  Qe7 {[%clk 0:00:09]} 31. Qf4 {[%clk 0:00:33]}  Qf8 {[%clk 0:00:10]} 32. f3 {[%clk 0:00:32]}  Bb3 {[%clk 0:00:09]} 33. Bb5 {[%clk 0:00:30]}  Rd1 {[%clk 0:00:08]} 34. Qh4 {[%clk 0:00:26]}  Rcc1 {[%clk 0:00:08]} 35. R3g4 {[%clk 0:00:14]}  Rh1+ {[%clk 0:00:07]} 36. Kg3 {[%clk 0:00:15]}  Rxh4 {[%clk 0:00:07]} 37. Rxh4 {[%clk 0:00:16]}  Rc8 {[%clk 0:00:06]} 38. Rd4 {[%clk 0:00:16]}  Bd5 {[%clk 0:00:06]} 39. Bd7 {[%clk 0:00:15]}  Rc7 {[%clk 0:00:06]} 40. Bxe6 {[%clk 0:00:15]}  Bxe6 {[%clk 0:00:06]} 41. Rxe6 {[%clk 0:00:16]}  Rc8 {[%clk 0:00:07]} 42. Rd7 {[%clk 0:00:15]}  Rd8 {[%clk 0:00:07]} 43. Rxa7 {[%clk 0:00:15]}  f4+ {[%clk 0:00:07]} 44. Kg4 {[%clk 0:00:15]}  Qg8 {[%clk 0:00:06]} 45. Rae7 {[%clk 0:00:15]}  Qf8 {[%clk 0:00:04]} 46. Rc7 {[%clk 0:00:12]}  Kh7 {[%clk 0:00:05]} 47. Rg6 {[%clk 0:00:11]}  Rd2 {[%clk 0:00:05]} 48. Kh3 {[%clk 0:00:09]}  Qf5+ {[%clk 0:00:05]} 49. Kh4 {[%clk 0:00:10]}  Qxe5 {[%clk 0:00:04]} 50. Rf7 {[%clk 0:00:10]}  Qe1+ {[%clk 0:00:04]} 51. Kg4 {[%clk 0:00:10]}  Rxg2+ {[%clk 0:00:04]} 52. Kf5 {[%clk 0:00:10]}  Rxg6 {[%clk 0:00:05]} 53. hxg6+ {[%clk 0:00:11]}  Kg8 {[%clk 0:00:05]} 54. Rb7 {[%clk 0:00:10]}  Qe8 {[%clk 0:00:05]} 55. Rxb6 {[%clk 0:00:09]}  Qc8+ {[%clk 0:00:06]} 56. Ke4 {[%clk 0:00:09]}  Qc4+ {[%clk 0:00:06]} 57. Kf5 {[%clk 0:00:08]}  Qc5+ {[%clk 0:00:07]} 58. Kxf4 {[%clk 0:00:08]}  Qxb6 {[%clk 0:00:07]} 59. Kg4 {[%clk 0:00:09]}  Qa5 {[%clk 0:00:08]} 60. f4 {[%clk 0:00:10]}  Qxa4 {[%clk 0:00:09]} 61. Kh5 {[%clk 0:00:10]}  Qe8 {[%clk 0:00:10]} 62. f5 {[%clk 0:00:10]}  Qf8 {[%clk 0:00:11]} 63. f6 {[%clk 0:00:10]}  Qxf6 {[%clk 0:00:12]} 64. Kg4 {[%clk 0:00:11]}  Kf8 {[%clk 0:00:12]} 65. Kh5 {[%clk 0:00:12]}  Qg5# {[%clk 0:00:12]} 0-1


[Site "https://www.chess.com"]

[Event "Titled Tuesday Blitz November 07 Late 2023"]
[White "Tatarinov, Dmitry"]
[Black "Ziatdinov, Raset"]
[WhiteFideId "24160067"]
[BlackFideId "2015323"]
[WhiteElo "2725"]
[BlackElo "2535"]
[Result "1-0"]
[Round "8"]
[TimeControl "180+1"]
[Date "2023.11.07"]
[WhiteClock "0:01:10"]
[BlackClock "0:00:00"]
[Board "34"]

1. e4 {[%clk 0:03:00]}  e5 {[%clk 0:02:58]} 2. Nf3 {[%clk 0:02:55]}  Nc6 {[%clk 0:02:58]} 3. Bb5 {[%clk 0:02:55]}  a6 {[%clk 0:02:57]} 4. Ba4 {[%clk 0:02:55]}  Nf6 {[%clk 0:02:56]} 5. d3 {[%clk 0:02:55]}  d6 {[%clk 0:02:52]} 6. O-O {[%clk 0:02:55]}  b5 {[%clk 0:02:51]} 7. Bb3 {[%clk 0:02:55]}  Na5 {[%clk 0:02:51]} 8. Nc3 {[%clk 0:02:46]}  Be7 {[%clk 0:02:41]} 9. h3 {[%clk 0:02:39]}  O-O {[%clk 0:02:37]} 10. Nd5 {[%clk 0:02:36]}  Nxd5 {[%clk 0:02:34]} 11. Bxd5 {[%clk 0:02:36]}  c6 {[%clk 0:02:34]} 12. Bb3 {[%clk 0:02:36]}  Nxb3 {[%clk 0:02:30]} 13. axb3 {[%clk 0:02:36]}  f5 {[%clk 0:02:30]} 14. exf5 {[%clk 0:02:34]}  Bxf5 {[%clk 0:02:29]} 15. Re1 {[%clk 0:02:32]}  Qd7 {[%clk 0:02:25]} 16. Bg5 {[%clk 0:02:28]}  Bxg5 {[%clk 0:02:08]} 17. Nxg5 {[%clk 0:02:29]}  h6 {[%clk 0:02:03]} 18. Ne4 {[%clk 0:02:29]}  Rf7 {[%clk 0:01:54]} 19. d4 {[%clk 0:02:24]}  Bxe4 {[%clk 0:01:47]} 20. Rxe4 {[%clk 0:02:24]}  exd4 {[%clk 0:01:45]} 21. Qxd4 {[%clk 0:02:24]}  d5 {[%clk 0:01:42]} 22. Re5 {[%clk 0:02:13]}  a5 {[%clk 0:01:28]} 23. Rae1 {[%clk 0:02:09]}  a4 {[%clk 0:01:27]} 24. bxa4 {[%clk 0:02:04]}  Rxa4 {[%clk 0:01:23]} 25. Re8+ {[%clk 0:02:02]}  Kh7 {[%clk 0:01:19]} 26. Qd3+ {[%clk 0:02:02]}  Qf5 {[%clk 0:01:18]} 27. Qd2 {[%clk 0:01:51]}  Rf4 {[%clk 0:01:12]} 28. R1e2 {[%clk 0:01:50]}  b4 {[%clk 0:01:08]} 29. R8e5 {[%clk 0:01:46]}  Qg6 {[%clk 0:01:01]} 30. Re6 {[%clk 0:01:45]}  R4f6 {[%clk 0:00:59]} 31. Rxf6 {[%clk 0:01:44]}  Qxf6 {[%clk 0:00:52]} 32. Qxb4 {[%clk 0:01:41]}  Qf4 {[%clk 0:00:49]} 33. Qe1 {[%clk 0:01:30]}  c5 {[%clk 0:00:40]} 34. Re5 {[%clk 0:01:27]}  Qc4 {[%clk 0:00:34]} 35. Qd2 {[%clk 0:01:20]}  d4 {[%clk 0:00:31]} 36. b3 {[%clk 0:01:20]}  Qb5 {[%clk 0:00:28]} 37. Qe1 {[%clk 0:01:19]}  Qc6 {[%clk 0:00:25]} 38. Qe2 {[%clk 0:01:19]}  Ra7 {[%clk 0:00:18]} 39. Qd3+ {[%clk 0:01:17]}  Kh8 {[%clk 0:00:15]} 40. Qf5 {[%clk 0:01:12]}  Ra8 {[%clk 0:00:13]} 41. Rxc5 {[%clk 0:01:11]}  Qd6 {[%clk 0:00:10]} 42. Rc8+ {[%clk 0:01:11]}  Rxc8 {[%clk 0:00:09]} 43. Qxc8+ {[%clk 0:01:12]}  Kh7 {[%clk 0:00:10]} 44. Qf5+ {[%clk 0:01:12]}  Kg8 {[%clk 0:00:00]} 45. g3 {[%clk 0:01:10]} 1-0


[Site "https://www.chess.com"]